bitfinex-derivatives/quotes_SOLF0:USTF0_20250221
["timestamp","ask_amount","ask_price","bid_price","bid_amount"]
[1740158770196,5.742,174.1,174.05,25.38043]
[1740158770488,9.72299922,174.23,174.08,50.76086]
[1740158770794,25.38043,174.35,174.2,25.38043]
[1740158770991,1.00082689,174.34,174.23,25.38043]
[1740158771295,0.03656194,174.3,174.27,0.03870997]
[1740158771594,219.99164357,174.3,174.27,0.03870997]
[1740158771794,220.03114399,174.3,174.27,0.03870997]
[1740158772896,5.7358,174.29,174.27,0.03870997]
[1740158773094,220.03114399,174.3,174.27,0.03870997]
[1740158773295,0.03950042,174.3,174.27,0.03870997]
[1740158773493,5.736,174.29,174.27,0.03870997]
[1740158775287,0.03950042,174.3,174.27,0.03870997]
[1740158775888,5.736,174.28,174.27,0.03870997]
[1740158776094,5.736,174.28,174.27,9.97e-06]
[1740158779692,6.73694605,174.28,174.27,9.97e-06]
[1740158780100,5.736,174.28,174.27,9.97e-06]
[1740158780300,6.73688292,174.28,174.27,9.97e-06]
[1740158780801,47.83284655,174.28,174.27,9.97e-06]
[1740158783492,6.73688292,174.28,174.27,9.97e-06]
[1740158784800,10.87808292,174.28,174.27,9.97e-06]
[1740158785902,5.7383,174.21,174.2,8.63542997]
[1740158786099,5.7383,174.21,174.2,2.997e-05]
[1740158787098,5.7386,174.2,174.19,5.08e-05]
[1740158787298,41.09596363,174.25,174.12,41.09596363]
[1740158787595,4.1412,174.28,174.12,41.09596363]
[1740158787596,1.00001362,174.24,174.12,41.09596363]
[1740158787800,1.00001362,174.23,174.15,41.09596363]
[1740158788002,4.1412,174.28,174.15,41.09596363]
[1740158788199,0.04281812,174.21,174.18,41.09596363]
[1740158788404,4.1412,174.28,174.18,41.09596363]
[1740158788705,0.03678285,174.21,174.18,41.13458119]
[1740158788901,1.00020404,174.27,174.18,41.13458119]
[1740158789200,5.739,174.19,174.18,0.03861756]
[1740158790501,5.739,174.19,174.18,1.756e-05]
[1740158796510,6.73848349,174.19,174.18,1.756e-05]
[1740158796803,11.08138349,174.19,174.18,1.756e-05]
[1740158798021,36.40446654,174.19,174.18,1.756e-05]
[1740158798413,11.08138349,174.19,174.18,1.756e-05]
[1740158798613,10.0819,174.19,174.18,1.756e-05]
[1740158798809,11.0819444,174.19,174.18,1.756e-05]
[1740158800409,10.0819,174.19,174.18,1.756e-05]
[1740158801510,11.08247744,174.19,174.18,1.756e-05]
[1740158801714,36.40556049,174.19,174.18,1.756e-05]
[1740158802117,5.7427,174.08,174.05,25.32308305]
[1740158802315,25.32308305,174.16,174.02,175.56308305]
[1740158802522,1.0001393,174.15,174.02,175.56308305]
[1740158802714,1.0001393,174.15,174.02,181.30758305]
[1740158803015,1.0001393,174.15,174.02,175.56308305]
[1740158803211,0.03740532,174.1,174.07,0.03621771]
[1740158803918,5.7426,174.08,174.07,0.03621771]
[1740158804215,0.03740532,174.1,174.07,0.03621771]
[1740158805813,5.7426,174.08,174.07,0.03621771]
[1740158806020,5.7426,174.08,174.07,1.771e-05]
[1740158807715,5.746,173.98,173.93,25.32308305]
[1740158808313,5.7455,174.0,173.94,5.7471]
[1740158808519,25.32308305,174.07,173.93,25.32308305]
[1740158808719,0.99876346,174.06,173.98,0.03670144]
[1740158809019,0.04405573,174.02,173.98,0.03670144]
[1740158810121,0.04405573,174.02,173.99,25.32308305]
[1740158810422,0.04405573,174.02,173.99,31.06868305]
[1740158810620,0.04405573,174.02,173.99,25.32308305]
[1740158811021,5.7433,174.06,174.0,5.7452]
[1740158811317,4.2053,174.09,174.0,5.7452]
[1740158811911,4.2053,174.09,173.99,25.32308305]
[1740158812117,5.7445,174.03,173.99,25.32308305]
[1740158812317,5.7445,174.03,174.02,0.04273037]
[1740158813724,5.7445,174.03,174.02,3.037e-05]
[1740158818421,0.0407821,174.06,174.02,3.037e-05]
[1740158818624,5.7438,174.05,174.02,3.037e-05]
[1740158818924,0.0407821,174.06,174.02,3.037e-05]
[1740158819118,5.7437,174.05,174.02,3.037e-05]
[1740158819325,0.0407821,174.06,174.02,3.037e-05]
[1740158819722,5.7438,174.05,174.02,3.037e-05]
[1740158819925,0.0407821,174.06,174.02,3.037e-05]
[1740158820116,5.7442,174.03,174.02,3.037e-05]
[1740158820317,0.0407821,174.06,174.02,3.037e-05]
[1740158821925,5.7441,174.04,174.02,3.037e-05]
[1740158822322,0.0407821,174.06,174.02,3.037e-05]
[1740158823419,5.7441,174.04,174.02,3.037e-05]
[1740158824435,5.7442,174.03,174.02,3.037e-05]
[1740158830637,6.74653206,174.03,174.02,3.037e-05]
[1740158830838,86.19849816,174.03,173.76,25.32308305]
[1740158831039,25.32308305,173.94,173.79,25.32308305]
[1740158831235,4.2922,173.93,173.81,5.7514]
[1740158831436,5.7507,173.84,173.76,25.32308305]
[1740158831637,25.32308305,173.88,173.75,0.1077]
[1740158832038,5.78846122,173.83,173.8,0.03928691]
[1740158832232,0.03756122,173.83,173.8,0.03928691]
[1740158833638,5.7512,173.82,173.8,0.03928691]
[1740158834039,0.03756122,173.83,173.8,0.03928691]
[1740158834641,2.25926122,173.83,173.7,25.32308305]
[1740158834843,25.32308305,173.82,173.69,0.1077]
[1740158835240,25.32308305,173.82,173.69,5.8631]
[1740158835241,5.7519,173.8,173.69,5.8631]
[1740158835440,25.32308305,173.82,173.69,0.1077]
[1740158835836,5.7518,173.81,173.74,0.03917066]
[1740158836037,0.04372406,173.77,173.74,0.03917066]
[1740158837638,5.79662406,173.77,173.74,0.03917066]
[1740158838040,0.04372406,173.77,173.74,0.03917066]
[1740158838441,25.32308305,173.76,173.63,0.1135]
[1740158838637,2.0844,173.75,173.62,25.32308305]
[1740158838848,5.7548,173.71,173.68,396.94921255]
[1740158839043,2.0703,173.74,173.68,396.94921255]
[1740158839543,25.32308305,173.82,173.68,422.2722956]
[1740158839748,0.0410854,173.73,173.69,0.04429269]
[1740158840046,5.7532,173.76,173.68,422.2722956]
[1740158840341,0.04304834,173.73,173.69,0.04275395]
[1740158840747,1.00233283,173.81,173.68,422.2722956]
[1740158840946,0.0376381,173.73,173.7,5.7551]
[1740158841146,0.0376381,173.73,173.68,422.2722956]
[1740158841147,4.1547,173.82,173.68,422.2722956]
[1740158841347,0.03851739,173.73,173.72,5.7542]
[1740158841545,5.7522,173.79,173.71,25.32308305]
[1740158841846,4.1547,173.82,173.71,25.32308305]
[1740158842046,4.1547,173.82,173.73,5.7541]
[1740158842241,4.1547,173.82,173.71,25.32308305]
[1740158842442,2.0703,173.82,173.74,25.32308305]
[1740158842639,0.04319872,173.78,173.75,0.0376176]
[1740158843751,25.32308305,173.75,173.56,25.32308305]
[1740158843950,25.32308305,173.69,173.53,25.51628305]
[1740158844252,4.4091,173.68,173.56,25.32308305]
[1740158844450,4.4091,173.68,173.59,25.32308305]
[1740158844851,0.03903545,173.65,173.62,0.02805058]
[1740158846246,0.03903545,173.65,173.62,25.35113363]
[1740158846446,2.2358,173.75,173.62,25.35113363]
[1740158846651,5.7532,173.76,173.68,41.35587927]
[1740158846852,4.4091,173.81,173.71,41.35587927]
[1740158847750,5.7536,173.75,173.74,0.0377438]
[1740158848054,41.35587927,173.79,173.65,47.11257927]
[1740158848351,0.03785168,173.76,173.73,0.0438851]
[1740158848950,5.7535,173.75,173.73,0.0438851]
[1740158849153,0.03785168,173.76,173.73,0.0438851]
[1740158849545,5.7538,173.74,173.73,0.0438851]
[1740158849752,41.39373095,173.76,173.63,5.9507]
[1740158849952,41.39373095,173.76,173.62,41.35587927]
[1740158850256,41.35587927,173.73,173.59,47.11467927]
[1740158850554,2.1276,173.72,173.59,47.11467927]
[1740158850856,0.04151217,173.67,173.64,0.02320093]
[1740158851249,5.79771217,173.67,173.64,0.02320093]
[1740158852049,0.04151217,173.67,173.64,0.02320093]
[1740158852351,0.04151217,173.67,173.56,41.35587927]
[1740158852548,2.1767,173.69,173.56,41.35587927]
[1740158852755,5.7571,173.65,173.58,5.7589]
[1740158853054,2.1767,173.69,173.58,5.7589]
[1740158853555,0.04138049,173.65,173.58,5.7589]
[1740158853755,5.7573,173.64,173.58,5.7589]
[1740158854154,0.04138049,173.65,173.58,5.7589]
[1740158854353,5.7577,173.63,173.58,5.7589]
[1740158854856,0.04138049,173.65,173.62,41.35587927]
[1740158855058,2.1276,173.72,173.62,41.35587927]
[1740158855460,5.7564,173.67,173.6,41.35587927]
[1740158855758,2.1276,173.72,173.6,41.35587927]
[1740158856258,5.7564,173.67,173.64,0.04138049]
[1740158856459,0.03905166,173.68,173.64,0.04138049]
[1740158857350,5.7568,173.65,173.64,0.04138049]
[1740158857557,0.03905166,173.68,173.64,0.04138049]
[1740158858763,5.7564,173.67,173.64,0.04138049]
[1740158858957,0.03905166,173.68,173.64,0.04138049]
[1740158861762,0.03905166,173.68,173.65,5.7568]
[1740158862062,0.03905166,173.68,173.64,0.04138049]
[1740158862964,0.03905166,173.68,173.66,5.7563]
[1740158863859,0.03905166,173.68,173.64,0.04138049]
[1740158864660,5.7568,173.65,173.64,0.04138049]
[1740158865657,5.7581,173.62,173.54,41.35587927]
[1740158865863,41.35587927,173.7,173.54,41.35587927]
[1740158866062,1.00097326,173.69,173.54,41.35587927]
[1740158866264,5.7574,173.64,173.54,41.35587927]
[1740158866463,5.7574,173.64,173.57,5.7595]
[1740158866663,0.04242391,173.61,173.54,41.35587927]
[1740158868866,0.04429975,173.71,173.68,0.04235172]
[1740158869363,0.04429975,173.71,173.68,5.79815172]
[1740158869565,0.04429975,173.71,173.68,0.04235172]
[1740158872063,0.04429975,173.71,173.68,5.79795172]
[1740158872263,0.04429975,173.71,173.68,0.04235172]
[1740158874658,0.04429975,173.71,173.69,5.7555]
[1740158874858,0.04429975,173.71,173.69,41.35587927]
[1740158875267,0.04429975,173.71,173.7,5.7552]
[1740158876568,0.04429975,173.71,173.68,0.04235172]
[1740158877165,5.79919975,173.71,173.68,0.04235172]
[1740158877468,0.04429975,173.71,173.68,0.04235172]
[1740158877868,5.79919975,173.71,173.68,0.04235172]
[1740158878173,0.04429975,173.71,173.68,0.04235172]
[1740158878565,0.04429975,173.71,173.6,192.0]
[1740158878869,41.35587927,173.74,173.61,5.7579]
[1740158879070,1.00114648,173.73,173.57,41.35587927]
[1740158879271,1.00114648,173.73,173.61,5.7581]
[1740158879566,1.00114648,173.73,173.57,41.35587927]
[1740158879764,41.39972782,173.69,173.55,62.90209774]
[1740158879963,4.2907,173.68,173.55,62.90209774]
[1740158880163,0.03749332,173.64,173.54,41.35587927]
[1740158880367,0.03749332,173.64,173.57,5.7594]
[1740158882660,0.03749332,173.64,173.6,41.35587927]
[1740158882864,4.2907,173.68,173.6,41.35587927]
[1740158882865,2.1922,173.68,173.6,41.35587927]
[1740158883171,0.04417508,173.64,173.54,41.35587927]
[1740158883975,0.04417508,173.64,173.51,41.35587927]
[1740158884275,41.35587927,173.63,173.5,150.58]
[1740158884469,0.0436333,173.59,173.51,41.35587927]
[1740158885072,0.0436333,173.59,173.51,47.11717927]
[1740158885261,0.0436333,173.59,173.51,41.35587927]
[1740158885467,5.8024333,173.59,173.51,41.35587927]
[1740158885974,0.0436333,173.59,173.51,41.35587927]
[1740158886176,0.0436333,173.59,173.54,41.35587927]
[1740158886668,0.0436333,173.59,173.55,5.76]
[1740158886975,0.0436333,173.59,173.51,41.35587927]
[1740158887472,0.0436333,173.59,173.54,5.7604]
[1740158887976,0.0436333,173.59,173.51,41.35587927]
[1740158888474,0.0436333,173.59,173.52,5.7608]
[1740158889072,0.0436333,173.59,173.53,5.7607]
[1740158889267,0.0436333,173.59,173.5,176.08149238]
[1740158889471,0.0436333,173.59,173.47,25.50149238]
[1740158889672,25.50149238,173.62,173.47,25.50149238]
[1740158889974,0.04308533,173.55,173.47,25.50149238]
[1740158890173,0.04308533,173.55,173.5,5.7618]
[1740158890872,0.04308533,173.55,173.5,25.50149238]
[1740158891376,0.04308533,173.55,173.52,5.7608]
[1740158891675,0.04308533,173.55,173.47,25.50149238]
[1740158892671,5.7608,173.53,173.47,31.26399238]
[1740158892873,0.04308533,173.55,173.47,25.50149238]
[1740158893269,5.80348533,173.55,173.49,5.7618]
[1740158893467,0.04308533,173.55,173.47,25.50149238]
[1740158893773,0.04308533,173.55,173.54,5.7605]
[1740158894275,9.8008454,173.66,173.53,25.50149238]
[1740158894475,6.3662,173.69,173.58,25.50149238]
[1740158894976,6.3662,173.69,173.5,8.64]
[1740158894977,1.00193989,173.68,173.55,25.50149238]
[1740158895371,5.79992008,173.63,173.6,0.04229637]
[1740158895871,0.04212008,173.63,173.6,0.04229637]
[1740158896474,0.04212008,173.63,173.61,5.7581]
[1740158896877,5.79962008,173.63,173.6,0.04229637]
[1740158897180,0.04212008,173.63,173.6,0.04229637]
[1740158897373,5.7579,173.62,173.6,0.04229637]
[1740158897578,0.04212008,173.63,173.6,0.04229637]
[1740158897978,0.04212008,173.63,173.52,31.26259238]
[1740158898174,0.04212008,173.63,173.46,8.64]
[1740158898175,0.04212008,173.63,173.49,25.50149238]
[1740158898474,1.00183252,173.65,173.49,25.50149238]
[1740158898876,25.50149238,173.63,173.48,25.50149238]
[1740158899179,25.50149238,173.63,173.45,192.0]
[1740158899180,5.7614,173.52,173.46,5.7628]
[1740158899575,0.03976023,173.51,173.41,7.83246272]
[1740158899776,0.03976023,173.51,173.47,5.7628]
[1740158900376,0.03976023,173.51,173.4,1.92373021]
[1740158900677,166.14001239,173.72,173.48,25.50149238]
[1740158900878,2.248,173.61,173.52,25.50149238]
[1740158901079,5.7596,173.57,173.52,25.50149238]
[1740158901280,2.248,173.61,173.52,25.50149238]
[1740158901680,5.7589,173.59,173.53,5.7605]
[1740158901885,0.04060264,173.58,173.55,0.03978226]
[1740158903178,0.04060264,173.58,173.55,25.54127464]
[1740158903374,0.04060264,173.58,173.57,5.7595]
[1740158904381,0.04060264,173.58,173.55,31.30107464]
[1740158904780,0.04060264,173.58,173.56,5.7598]
[1740158904979,0.04060264,173.58,173.55,25.54127464]
[1740158905181,0.04060264,173.58,173.55,0.03978226]
[1740158905685,0.04060264,173.58,173.55,25.54127464]
[1740158905984,0.04060264,173.58,173.57,5.7595]
[1740158906479,2.2043,173.66,173.55,25.54127464]
[1740158906685,2.2043,173.66,173.61,5.758]
[1740158906884,2.2043,173.66,173.59,25.50149238]
[1740158907078,2.1295,173.68,173.59,25.50149238]
[1740158907785,0.0415789,173.65,173.64,5.7571]
[1740158907985,1.00287428,173.75,173.64,5.7571]
[1740158908284,0.04180915,173.66,173.63,25.54377471]
[1740158908487,2.1338,173.74,173.64,5.7569]
[1740158908681,0.04371371,173.66,173.64,5.7569]
[1740158908881,2.1338,173.74,173.64,5.7569]
[1740158909081,0.0429492,173.67,173.64,5.7569]
[1740158909281,5.7558,173.69,173.67,0.04423327]
[1740158909477,5.7558,173.69,173.65,5.7568]
[1740158909683,5.7558,173.69,173.66,0.04020258]
[1740158909984,5.7931151,173.7,173.66,0.04020258]
[1740158910179,0.0379151,173.7,173.66,0.04020258]
[1740158910378,5.7562,173.67,173.66,0.04020258]
[1740158910577,0.0379151,173.7,173.57,25.50149238]
[1740158910777,2.114,173.71,173.6,25.50149238]
[1740158910977,5.7557,173.69,173.6,25.50149238]
[1740158911184,2.114,173.71,173.6,25.50149238]
[1740158911778,0.04313508,173.67,173.64,0.04082943]
[1740158912582,0.04313508,173.67,173.64,5.79772943]
[1740158913084,0.04313508,173.67,173.64,0.04082943]
[1740158913586,0.04313508,173.67,173.53,150.8]
[1740158913587,0.04313508,173.67,173.57,25.50149238]
[1740158913784,0.04313508,173.67,173.6,25.50149238]
[1740158913981,2.114,173.71,173.6,25.50149238]
[1740158914687,5.7552,173.7,173.63,5.7572]
[1740158914884,0.03776713,173.67,173.6,25.50149238]
[1740158915086,0.03776713,173.67,173.63,5.7574]
[1740158915287,0.03776713,173.67,173.6,25.50149238]
[1740158916285,5.7566,173.66,173.6,31.25989238]
[1740158916993,5.7566,173.66,173.61,5.7581]
[1740158917292,0.03776713,173.67,173.6,25.50149238]
[1740158917481,0.03776713,173.67,173.62,5.7578]
[1740158917894,0.03776713,173.67,173.6,25.50149238]
[1740158918794,0.03776713,173.67,173.6,31.25989238]
[1740158918997,0.03776713,173.67,173.57,25.50149238]
[1740158919196,0.03776713,173.67,173.58,5.7588]
[1740158919398,0.03776713,173.67,173.57,25.50149238]
[1740158920200,5.7571,173.65,173.57,25.50149238]
[1740158920400,2.114,173.71,173.6,5.7584]
[1740158920901,0.0419804,173.67,173.6,5.7584]
[1740158921101,5.7568,173.65,173.6,5.7584]
[1740158921502,5.7568,173.65,173.61,5.7581]
[1740158922003,0.03860112,173.65,173.61,5.7579]
[1740158922301,0.03860112,173.65,173.63,25.50149238]
[1740158922600,2.114,173.71,173.63,25.50149238]
[1740158923001,2.114,173.71,173.6,25.50149238]
[1740158923400,2.114,173.71,173.59,5.7588]
[1740158923801,0.04156023,173.67,173.63,0.03879313]
[1740158924001,5.7571,173.64,173.63,0.03879313]
[1740158924204,0.04156023,173.67,173.63,0.03879313]
[1740158924603,5.7566,173.66,173.63,0.03879313]
[1740158924803,0.04156023,173.67,173.63,0.03879313]
[1740158925405,5.7571,173.64,173.63,0.03879313]
[1740158925608,0.04156023,173.67,173.63,0.03879313]
[1740158926706,0.04156023,173.67,173.63,25.54028551]
[1740158927304,0.04156023,173.67,173.63,0.03879313]
[1740158927505,5.7571,173.64,173.63,0.03879313]
[1740158929110,0.04156023,173.67,173.63,0.03879313]
[1740158929314,0.04156023,173.67,173.63,5.79599313]
[1740158930307,0.04156023,173.67,173.63,0.03879313]
[1740158932611,0.04156023,173.67,173.63,25.54028551]
[1740158934008,0.04156023,173.67,173.63,0.03879313]
[1740158934810,0.04156023,173.67,173.63,5.79599313]
[1740158935006,0.04156023,173.67,173.63,25.54028551]
[1740158935210,0.04156023,173.67,173.66,5.7565]
[1740158936514,9.82458901,173.78,173.66,25.50149238]
[1740158936714,5.7542,173.73,173.69,5.7553]
[1740158936916,3.8255,173.77,173.69,25.50149238]
[1740158937710,0.03932573,173.75,173.71,0.03739602]
[1740158938613,5.7545,173.72,173.71,0.03739602]
[1740158939215,0.03932573,173.75,173.71,0.03739602]
[1740158940217,5.7545,173.72,173.71,0.03739602]
[1740158941015,0.03932573,173.75,173.6,217.50149238]
[1740158941216,1.00202428,173.75,173.6,217.50149238]
[1740158941615,5.7561,173.68,173.63,5.7575]
[1740158942009,25.50149238,173.76,173.63,5.7575]
[1740158942213,0.04208107,173.67,173.64,0.04102199]
[1740158942419,0.03975718,173.67,173.64,25.54288182]
[1740158942718,0.03975718,173.67,173.66,5.7564]
[1740158943916,5.7547,173.72,173.64,25.54288182]
[1740158944213,3.8255,173.77,173.68,5.7557]
[1740158944416,5.7547,173.72,173.68,5.7557]
[1740158945220,0.03627608,173.72,173.68,0.04191729]
[1740158945619,0.03627608,173.72,173.7,25.50149238]
[1740158946215,0.03627608,173.72,173.7,31.25659238]
[1740158946618,0.03627608,173.72,173.7,25.50149238]
[1740158946818,0.03627608,173.72,173.7,31.25649238]
[1740158947218,0.03627608,173.72,173.7,25.50149238]
[1740158947418,0.03627608,173.72,173.71,5.7548]
[1740158948219,0.03627608,173.72,173.7,25.50149238]
[1740158948419,0.03627608,173.72,173.68,0.04191729]
[1740158949220,0.03627608,173.72,173.71,5.7548]
[1740158949726,3.5562,173.8,173.7,25.50149238]
[1740158950428,3.5562,173.8,173.73,5.754]
[1740158950726,0.03713022,173.78,173.75,0.04318917]
[1740158951026,5.7532,173.76,173.75,0.04318917]
[1740158952129,5.7529,173.77,173.75,0.04318917]
[1740158952625,0.03713022,173.78,173.75,0.04318917]
[1740158953322,5.7531,173.77,173.75,0.04318917]
[1740158953823,0.03713022,173.78,173.76,5.7531]
[1740158954121,0.03713022,173.78,173.76,25.50149238]
[1740158954321,0.03713022,173.78,173.77,5.7528]
[1740158954725,5.332,173.85,173.77,15.88968482]
[1740158955027,5.332,173.85,173.8,15.88968482]
[1740158955329,5.332,173.85,173.77,15.88968482]
[1740158955517,5.7511,173.83,173.79,5.752]
[1740158955718,5.79426278,173.83,173.79,5.78850067]
[1740158955925,0.04316278,173.83,173.79,5.78850067]
[1740158956321,5.7514,173.82,173.79,5.78850067]
[1740158957125,0.04316278,173.83,173.79,0.03650067]
[1740158957922,5.7514,173.82,173.79,5.78850067]
[1740158958125,5.7514,173.82,173.79,0.03650067]
[1740158958430,86.59133488,173.94,173.82,17.28]
[1740158958629,111.25735213,173.96,173.93,25.42588388]
[1740158958929,156.67453721,173.97,173.92,25.42588388]
[1740158959129,156.67453721,173.97,173.88,25.42588388]
[1740158959526,0.04216243,173.94,173.91,0.03651703]
[1740158959721,0.04216243,173.94,173.91,25.46240091]
[1740158959924,0.04216243,173.94,173.92,5.7478]
[1740158960128,0.04216243,173.94,173.91,25.46240091]
[1740158960532,0.04216243,173.94,173.91,0.03651703]
[1740158961432,0.04216243,173.94,173.91,25.46240091]
[1740158961630,0.04216243,173.94,173.92,5.7478]
[1740158963029,0.04216243,173.94,173.91,25.46240091]
[1740158963328,25.42588388,174.1,173.92,25.42588388]
[1740158963534,3.5192,174.06,173.97,25.42588388]
[1740158964034,3.5192,174.06,173.99,5.7455]
[1740158964634,0.03780622,174.04,174.01,0.04086395]
[1740158966030,0.03780622,174.04,173.96,5.7465]
[1740158966224,0.03780622,174.04,173.91,217.42588388]
[1740158966435,31.16988388,174.04,173.91,25.42588388]
[1740158966638,31.16988388,174.04,173.95,5.7467]
[1740158966835,5.744,174.04,173.95,5.7467]
[1740158967038,5.7443,174.03,173.95,5.7467]
[1740158967237,0.04193442,174.01,173.98,0.03814671]
[1740158968133,0.04193442,174.01,174.0,5.7452]
[1740158969538,0.04193442,174.01,173.98,0.03814671]
[1740158970341,0.04193442,174.01,173.98,5.78404671]
[1740158970643,1.6931,174.05,173.98,0.03814671]
[1740158970840,5.7445,174.03,173.98,0.03814671]
[1740158971041,1.6931,174.05,173.98,0.03814671]
[1740158971542,1.6931,174.05,173.99,5.7453]
[1740158971732,0.04417476,174.03,173.99,5.7453]
[1740158972733,0.04417476,174.03,174.01,5.7447]
[1740158974043,0.04417476,174.03,173.98,25.46403059]
[1740158974341,3.5192,174.06,173.98,33.29649331]
[1740158974642,5.7435,174.06,174.01,5.7449]
[1740158975343,3.5177,174.13,174.01,25.42588388]
[1740158975545,3.5177,174.13,174.02,0.03836384]
[1740158975747,0.04422947,174.09,174.04,5.7439]
[1740158975946,0.04422947,174.09,174.06,0.03747305]
[1740158976943,5.7429,174.08,174.06,0.03747305]
[1740158977146,0.04422947,174.09,174.01,7.83246272]
[1740158977649,5.7436,174.06,174.01,7.83246272]
[1740158977845,5.7436,174.06,174.0,7.83246272]
[1740158978043,5.7431,174.07,174.01,5.7448]
[1740158978243,28.94358388,174.13,174.0,7.83246272]
[1740158978451,0.03656617,174.06,174.02,0.04419552]
[1740158978751,5.78006617,174.06,174.0,7.83246272]
[1740158978947,5.78006617,174.06,174.02,0.0436474]
[1740158979253,0.03656617,174.06,174.02,5.7881474]
[1740158980249,0.03656617,174.06,174.02,0.0436474]
[1740158980853,5.7438,174.05,174.02,0.0436474]
[1740158981959,0.03656617,174.06,174.02,0.0436474]
[1740158982558,5.77996617,174.06,174.02,0.0436474]
[1740158983064,5.7437,174.05,174.02,0.0436474]
[1740158983259,5.7437,174.05,174.02,5.7881474]
[1740158983960,0.03656617,174.06,174.02,0.0436474]
[1740158985063,5.7438,174.05,174.02,5.7879474]
[1740158985264,0.03656617,174.06,174.02,0.0436474]
[1740158985864,5.78006617,174.06,174.03,5.744]
[1740158986060,0.03656617,174.06,174.04,25.42588388]
[1740158986561,0.03656617,174.06,174.05,5.7436]
[1740158986762,3.5177,174.13,174.04,25.42588388]
[1740158987061,5.7421,174.1,174.04,25.42588388]
[1740158987365,3.5177,174.13,174.01,25.42588388]
[1740158987962,0.03837001,174.09,174.05,0.04164678]
[1740158988162,5.7435,174.06,174.05,0.04164678]
[1740158988466,0.03837001,174.09,174.0,7.83246272]
[1740158988664,25.42588388,174.12,174.0,7.83246272]
[1740158989565,25.42588388,174.12,174.04,0.04418471]
[1740158989566,5.7437,174.05,174.04,0.04418471]
[1740158989968,0.04254417,174.08,174.04,0.04418471]
[1740158990169,5.7433,174.06,174.04,0.04418471]
[1740158990671,0.04254417,174.08,174.04,0.04418471]
[1740158990972,5.7435,174.06,174.04,0.04418471]
[1740158991373,5.78524417,174.08,174.04,0.04418471]
[1740158991970,5.7429,174.07,174.04,5.78778471]
[1740158992370,5.7429,174.07,174.04,0.04418471]
[1740158992571,0.04254417,174.08,174.04,0.04418471]
[1740158993675,5.7433,174.06,174.04,0.04418471]
[1740158994374,5.7436,174.05,174.04,0.04418471]
[1740158994577,5.7436,174.05,174.04,7.87664743]
[1740158996578,5.7436,174.05,174.04,53.77882636]
[1740158997374,5.7433,174.06,174.04,53.77882636]
[1740158997576,1.7751,174.07,174.04,53.77882636]
[1740158998477,5.7436,174.05,174.04,53.77882636]
[1740158999181,5.7436,174.05,174.04,23.49738818]
[1740159000279,5.7435,174.06,174.04,23.49738818]
[1740159000574,1.7751,174.07,174.04,23.49738818]
[1740159000969,5.7436,174.05,174.04,23.49738818]
[1740159001174,0.04254417,174.08,174.04,29.55100482]
[1740159001474,5.7436,174.05,174.04,29.55100482]
[1740159002366,5.7436,174.05,174.04,15.49280482]
[1740159002567,5.7439,174.04,174.03,22.90516404]
[1740159002770,25.42588388,174.04,174.01,92.60901678]
[1740159003179,25.42588388,174.04,173.97,63.92897996]
[1740159003573,25.42588388,174.01,173.97,63.92897996]
[1740159003774,5.7453,174.0,173.97,63.92897996]
[1740159004080,0.04066835,174.01,173.97,63.96944567]
[1740159004778,5.7459,173.98,173.97,63.96944567]
[1740159005469,25.46655223,174.01,173.97,63.96944567]
[1740159005669,0.04066835,174.01,173.97,63.96944567]
[1740159005879,0.04066835,174.01,173.97,0.04046571]
[1740159006479,25.46655223,174.01,173.97,6.571e-05]
[1740159006675,5.7459,173.98,173.97,6.571e-05]
[1740159006872,25.42588388,173.98,173.88,1.7713]
[1740159007569,25.42588388,173.98,173.88,7.5204]
[1740159007772,5.7476,173.93,173.88,7.5204]
[1740159007973,0.04277956,173.95,173.91,0.04420505]
[1740159009481,5.7475,173.94,173.91,0.04420505]
[1740159010479,5.7479,173.92,173.91,0.04420505]
[1740159010682,25.42588388,173.93,173.77,57.06493463]
[1740159010886,25.42588388,173.9,173.8,1.8486]
[1740159011789,0.03915127,173.87,173.83,0.04252594]
[1740159012188,5.7481,173.92,173.81,25.42588388]
[1740159012482,0.03709557,173.87,173.83,0.04222694]
[1740159012685,0.03709557,173.87,173.85,5.7499]
[1740159012881,9.88201977,173.98,173.84,50.85176776]
[1740159013081,9.88201977,173.98,173.92,25.42588388]
[1740159013282,8.6,174.11,173.92,25.42588388]
[1740159013485,5.7453,174.0,173.93,5.7474]
[1740159014084,0.04142841,173.98,173.95,0.04047375]
[1740159014386,202.6,174.11,173.93,1.7033]
[1740159014585,0.03823821,173.98,173.95,25.46842248]
[1740159014787,1.00817389,174.09,173.95,25.42588388]
[1740159014985,0.03670768,173.98,173.95,25.46625458]
[1740159015281,25.42588388,174.1,173.95,25.42588388]
[1740159015485,0.04151201,173.98,173.95,25.42588388]